[Event "LEM Niedersachsen-B-Open 2025"]
[Site "Verden"]
[Date "2025.01.05"]
[Round "7.1"]
[White "Kraeuter, Paavo Alexander"]
[Black "Huth, Jarik"]
[Result "1-0"]
[ECO "E92"]
[WhiteElo "1886"]
[BlackElo "1814"]
[Annotator "NA RC"]
[PlyCount "76"]
[EventDate "2024.12.27"]
[EventType "swiss"]
[EventCountry "GER"]
[SourceTitle "playchess.com"]
[Source "ChessBase"]
[SourceQuality "1"]
[TimeControl "40/5400+30:1800+30"]

1. d4 {[%emt 0:00:03]} Nf6 {[%emt 0:00:19]} 2. c4 {[%emt 0:00:06]} g6 {[%emt 0:00:04]} 3. Nc3 {[%emt 0:00:05]} Bg7 {[%emt 0:00:04]} 4. e4 {[%emt 0:00:06]} d6 {[%emt 0:00:02]} 5. Nf3 {[%emt 0:00:05]} O-O {[%emt 0:00:06]} 6. Be2 {[%emt 0:00:04]} e5 {[%emt 0:00:04]} 7. d5 {[%emt 0:00:05]} a5 {[%emt 0:00:05]} 8. Bg5 {[%emt 0:00:04]} h6 {[%emt 0:00:06]} 9. Be3 {[%emt 0:00:04]} Ng4 {[%emt 0:00:08] E92: King's Indian: Classical: 6 Be2 e5: 7 dxe5, 7 Be3 and Petrosian System without 7...Nbd7.} 10. Bd2 {[%emt 0:00:06]} f5 {[%emt 0:00:32]} 11. O-O {[%emt 0:00:06]} Na6 {[%emt 0:01:41]} 12. exf5 {[%emt 0:00:46]} Bxf5 {[%emt 0:03:48]} 13. g3 {[%emt 0:02:48]} e4 {[%emt 0:03:38]} 14. Nh4 {[%emt 0:00:27]} Ne5 {[%emt 0:01:08]} 15. Nxf5 {[%emt 0:18:09]} gxf5 {[%emt 0:00:57]} 16. Bf4 {[%emt 0:02:24]} Nc5 {[%emt 0:04:13]} 17. Qd2 {[%emt 0:05:01]} Kh7 {[%emt 0:02:30]} 18. Kh1 {[%emt 0:17:22]} Ncd3 {[%emt 0:07:10]} (18... Qe7 $11 {should be considered.}) 19. Bxd3 {[%emt 0:00:37]} Nxd3 {[%emt 0:02:06]} 20. Rab1 $11 {[%emt 0:03:44]} Ne5 {[%emt 0:01:33]} 21. Bxe5 {[%emt 0:00:14]} Bxe5 {[%emt 0:00:09]} 22. Ne2 {[%emt 0:02:31]} Qg5 {[%emt 0:08:31]} 23. f4 {[%emt 0:07:08]} exf3 {[%emt 0:00:07]} 24. Qxg5 {[%emt 0:00:15]} hxg5 {[%emt 0:00:05]} 25. Rxf3 {[%emt 0:00:12]} Kg6 {[%emt 0:02:56]} 26. b3 {[%emt 0:06:39]} b6 {[%emt 0:02:55]} 27. Kg2 {[%emt 0:01:57]} Rf7 {[%emt 0:01:04]} 28. h4 {[%emt 0:05:23]} gxh4 {[%emt 0:02:27]} 29. gxh4 {[%emt 0:00:08]} f4 {[%emt 0:02:11]} 30. Rh3 {[%emt 0:02:59]} Kh5 {[%emt 0:01:49]} 31. Kf3 {[%emt 0:00:11]} Rg8 {[%emt 0:00:13]} 32. Rg1 {[%emt 0:01:18]} Rxg1 {[%emt 0:10:51]} 33. Nxg1 {[%emt 0:00:02]} Bf6 {[%emt 0:02:03]} 34. Ne2 {[%emt 0:03:00]} Bxh4 {[%emt 0:00:32]} 35. Nd4 {[%emt 0:00:22]} Rf8 {[%emt 0:21:45]} 36. Ne6 {[%emt 0:02:11]} Rf7 {[%emt 0:00:10]} 37. Rh1 {[%emt 0:00:34]} Re7 {[%emt 0:05:57]} 38. Nxf4+ {[%emt 0:01:42]} Kg5 {[%emt 0:04:37]} 1-0

[Event "LEM Niedersachsen-B-Open 2025"]
[Site "Verden"]
[Date "2025.01.05"]
[Round "7.2"]
[White "Berkenkamp, Matthis"]
[Black "Krneta, Slavko"]
[Result "1/2-1/2"]
[ECO "A03"]
[WhiteElo "1730"]
[BlackElo "1850"]
[Annotator "NA RC"]
[PlyCount "110"]
[EventDate "2024.12.27"]
[EventType "swiss"]
[EventCountry "GER"]
[SourceTitle "playchess.com"]
[Source "ChessBase"]
[SourceQuality "1"]
[TimeControl "40/5400+30:1800+30"]

1. f4 {[%emt 0:00:23]} e6 {[%emt 0:00:38]} 2. Nf3 {[%emt 0:00:16]} d5 {[%emt 0:00:09]} 3. b3 {[%emt 0:00:50]} Nf6 {[%emt 0:05:23]} 4. Bb2 {[%emt 0:00:24]} Nbd7 {[%emt 0:00:08]} 5. e3 {[%emt 0:00:56]} c5 {[%emt 0:01:51]} 6. d3 {[%emt 0:00:19] A03: Bird's Opening with 1...d5.} b6 {[%emt 0:00:57]} 7. Nbd2 {[%emt 0:00:21]} Bb7 {[%emt 0:00:25]} 8. Qe2 {[%emt 0:01:40]} Qc7 {[%emt 0:02:44]} 9. g3 {[%emt 0:01:22]} Bd6 {[%emt 0:10:54]} 10. Bg2 {[%emt 0:00:52]} e5 {[%emt 0:00:45]} 11. fxe5 {[%emt 0:00:18]} Nxe5 {[%emt 0:00:13]} 12. O-O-O {[%emt 0:02:57]} O-O-O {[%emt 0:04:04]} 13. Rde1 {[%emt 0:03:04]} Rhe8 {[%emt 0:01:36]} 14. Nxe5 {[%emt 0:01:45]} Bxe5 {[%emt 0:00:31]} 15. Nf3 {[%emt 0:00:39]} Bxb2+ {[%emt 0:01:56]} 16. Kxb2 {[%emt 0:01:22]} Kb8 {[%emt 0:00:08]} 17. Kb1 {[%emt 0:04:43]} d4 {[%emt 0:07:17]} 18. Qd2 {[%emt 0:07:18]} dxe3 {[%emt 0:10:34]} 19. Rxe3 {[%emt 0:01:29]} Ne4 {[%emt 0:00:23]} 20. Qe1 $15 {[%emt 0:02:07]} (20. Qc1 $1 $11 {is superior.} Nc3+ 21. Kb2) 20... Nd6 {[%emt 0:00:13]} 21. Nh4 {[%emt 0:05:03]} g6 {[%emt 0:06:18]} 22. Rf1 {[%emt 0:02:19]} Rxe3 {[%emt 0:01:00]} 23. Qxe3 {[%emt 0:00:06]} Re8 {[%emt 0:00:17]} 24. Qd2 {[%emt 0:01:38]} f5 {[%emt 0:03:06]} 25. Re1 {[%emt 0:02:06]} Re7 {[%emt 0:01:44]} 26. Bxb7 {[%emt 0:02:27]} Kxb7 {[%emt 0:00:14]} 27. Nf3 {[%emt 0:00:45]} Nb5 {[%emt 0:06:40]} 28. Re3 {[%emt 0:05:28]} Nc3+ {[%emt 0:03:23]} 29. Ka1 {[%emt 0:00:50]} Nd5 {[%emt 0:00:26]} 30. Re2 {[%emt 0:01:29]} Rxe2 {[%emt 0:00:18]} 31. Qxe2 {[%emt 0:00:08]} Qe7 {[%emt 0:00:07]} 32. Qxe7+ {[%emt 0:00:53]} Nxe7 {[%emt 0:00:02]} 33. Kb2 {[%emt 0:02:43]} Kc6 {[%emt 0:00:10]} 34. c4 {[%emt 0:00:10]} Kd6 {[%emt 0:00:16]} 35. Kc3 {[%emt 0:00:36]} Nc6 {[%emt 0:01:33]} 36. d4 {[%emt 0:04:55]} cxd4+ {[%emt 0:02:44]} 37. Nxd4 {[%emt 0:00:52]} Nxd4 {[%emt 0:00:11]} 38. Kxd4 {[%emt 0:00:06]} g5 {[%emt 0:14:02]} 39. b4 {[%emt 0:04:00]} a6 {[%emt 0:07:52]} 40. h3 {[%emt 0:03:38]} h6 {[%emt 0:01:25]} 41. c5+ {[%emt 0:36:32]} bxc5+ {[%emt 0:32:45]} 42. bxc5+ {[%emt 0:00:06]} Kc6 {[%emt 0:00:07]} 43. Ke5 {[%emt 0:00:07]} f4 {[%emt 0:00:03]} 44. gxf4 {[%emt 0:00:07]} gxf4 {[%emt 0:00:29]} 45. Kxf4 {[%emt 0:00:04]} Kxc5 {[%emt 0:00:19]} 46. Kg4 {[%emt 0:00:31]} Kb4 {[%emt 0:00:10]} 47. Kh5 {[%emt 0:00:04]} Ka3 {[%emt 0:00:13]} 48. Kxh6 {[%emt 0:00:06]} Kxa2 {[%emt 0:00:23]} 49. Kg6 {[%emt 0:00:14]} Kb1 {[%emt 0:00:16]} 50. h4 {[%emt 0:00:34]} a5 {[%emt 0:00:01]} 51. h5 {[%emt 0:00:07]} a4 {[%emt 0:00:01]} 52. h6 {[%emt 0:00:08]} a3 {[%emt 0:00:03]} 53. h7 {[%emt 0:00:08]} a2 {[%emt 0:00:02]} 54. h8=Q {[%emt 0:00:30]} a1=Q {[%emt 0:00:06]} 55. Qxa1+ {[%emt 0:00:06]} Kxa1 {[%emt 0:00:14]} 1/2-1/2

[Event "LEM Niedersachsen-B-Open 2025"]
[Site "Verden"]
[Date "2025.01.05"]
[Round "7.3"]
[White "Drews, Nicolas"]
[Black "Gburek, Juergen"]
[Result "1/2-1/2"]
[ECO "E09"]
[WhiteElo "1834"]
[BlackElo "1902"]
[Annotator "NA RC"]
[PlyCount "47"]
[EventDate "2024.12.27"]
[EventType "swiss"]
[EventCountry "GER"]
[SourceTitle "playchess.com"]
[Source "ChessBase"]
[SourceQuality "1"]
[TimeControl "40/5400+30:1800+30"]

1. d4 {[%emt 0:00:18]} d5 {[%emt 0:00:02]} 2. c4 {[%emt 0:00:08]} e6 {[%emt 0:00:05]} 3. Nf3 {[%emt 0:00:05]} Nf6 {[%emt 0:00:10]} 4. g3 {[%emt 0:00:09]} Be7 {[%emt 0:00:39]} 5. Bg2 {[%emt 0:00:06]} O-O {[%emt 0:00:40]} 6. O-O {[%emt 0:00:04]} Nbd7 {[%emt 0:05:40]} 7. Qd3 {[%emt 0:04:20]} c6 {[%emt 0:04:12]} 8. Nc3 {[%emt 0:00:40]} Re8 {[%emt 0:02:51]} 9. e4 {[%emt 0:00:44]} dxe4 {[%emt 0:06:25]} 10. Nxe4 {[%emt 0:00:17]} Nxe4 {[%emt 0:05:34]} 11. Qxe4 {[%emt 0:00:14]} Nf6 {[%emt 0:09:29]} 12. Qe2 $14 {[%emt 0:00:22]} c5 {[%emt 0:09:42]} 13. Rd1 {[%emt 0:02:00]} Qb6 {[%emt 0:07:51]} 14. Be3 {[%emt 0:15:13]} Bd7 {[%emt 0:08:36]} 15. Ne5 {[%emt 0:06:48]} Bc6 {[%emt 0:01:10]} 16. Nxc6 {[%emt 0:00:33]} bxc6 {[%emt 0:00:08]} 17. Rd2 {[%emt 0:12:12]} Rad8 {[%emt 0:05:09]} 18. Rad1 {[%emt 0:02:11]} cxd4 {[%emt 0:01:20]} 19. Bxd4 {[%emt 0:00:15]} c5 {[%emt 0:02:59]} 20. Bc3 {[%emt 0:03:34]} Rxd2 {[%emt 0:01:47]} 21. Rxd2 {[%emt 0:00:22]} Rd8 {[%emt 0:01:01]} 22. Rxd8+ {[%emt 0:09:52]} Qxd8 {[%emt 0:00:17]} 23. Qd2 {[%emt 0:00:02]} Qc7 {[%emt 0:02:31]} 24. Ba5 {[%emt 0:05:50]} 1/2-1/2

[Event "LEM Niedersachsen-B-Open 2025"]
[Site "Verden"]
[Date "2025.01.05"]
[Round "7.5"]
[White "Sammann, Anton"]
[Black "Nguyen, Laurentius"]
[Result "1-0"]
[ECO "C44"]
[WhiteElo "1771"]
[BlackElo "1795"]
[Annotator "NA RC"]
[PlyCount "69"]
[EventDate "2024.12.27"]
[EventType "swiss"]
[EventCountry "GER"]
[SourceTitle "playchess.com"]
[Source "ChessBase"]
[SourceQuality "1"]
[TimeControl "40/5400+30:1800+30"]

1. e4 {[%emt 0:00:02]} e5 {[%emt 0:00:06]} 2. Nf3 {[%emt 0:00:06]} Nc6 {[%emt 0:00:06]} 3. c3 {[%emt 0:00:06]} d5 {[%emt 0:00:43]} 4. Qa4 {[%emt 0:00:31]} Bd7 {[%emt 0:03:31]} 5. exd5 {[%emt 0:00:39]} Nd4 {[%emt 0:00:10]} 6. Qd1 {[%emt 0:00:08]} Nxf3+ {[%emt 0:00:21]} 7. Qxf3 {[%emt 0:00:09]} Nf6 {[%emt 0:00:28]} 8. Bc4 {[%emt 0:03:10]} e4 {[%emt 0:01:56]} 9. Qe2 {[%emt 0:01:58]} Bd6 {[%emt 0:00:58]} 10. d4 {[%emt 0:03:52]} h6 {[%emt 0:04:18]} 11. h3 {[%emt 0:02:15]} O-O {[%emt 0:00:16]} 12. O-O {[%emt 0:00:26]} Re8 {[%emt 0:04:32]} 13. Be3 {[%emt 0:02:08]} Qc8 {[%emt 0:06:57]} 14. Nd2 {[%emt 0:07:01]} Qd8 {[%emt 0:48:18]} 15. Rae1 {[%emt 0:22:48]} b5 {[%emt 0:06:47]} 16. Bb3 {[%emt 0:01:36]} Nh7 {[%emt 0:04:51]} 17. f3 {[%emt 0:05:46]} exf3 {[%emt 0:06:07]} 18. Qxf3 {[%emt 0:01:00]} Rf8 {[%emt 0:00:29]} 19. Ne4 {[%emt 0:02:11]} Be7 {[%emt 0:06:20]} 20. Qh5 {[%emt 0:09:15]} Bg5 {[%emt 0:02:26]} 21. Nxg5 {[%emt 0:05:15]} Nxg5 {[%emt 0:00:11]} 22. h4 {[%emt 0:01:23]} Nh7 {[%emt 0:00:19]} 23. Bxh6 {[%emt 0:01:09]} gxh6 {[%emt 0:00:44]} 24. Qxh6 {[%emt 0:00:17]} Kh8 {[%emt 0:01:04]} 25. d6 {[%emt 0:10:32]} cxd6 {[%emt 0:00:28]} 26. Bxf7 {[%emt 0:00:42]} Bc6 {[%emt 0:00:22]} 27. g4 {[%emt 0:09:20]} Rxf7 {[%emt 0:00:36]} 28. Rxf7 {[%emt 0:04:04]} Qg8 {[%emt 0:00:00]} 29. Qh5 {[%emt 0:01:58]} Be8 {[%emt 0:00:36]} 30. Rxh7+ {[%emt 0:00:05]} Qxh7 {[%emt 0:01:30]} 31. Rxe8+ {[%emt 0:00:04]} Rxe8 {[%emt 0:00:00]} 32. Qxe8+ {[%emt 0:00:04]} Kg7 {[%emt 0:00:00]} 33. Qe7+ {[%emt 0:00:04]} Kg6 {[%emt 0:00:00]} 34. Qxh7+ {[%emt 0:00:07]} Kxh7 {[%emt 0:02:00]} 35. Kg2 {[%emt 0:00:06]} 1-0

[Event "LEM Niedersachsen-B-Open 2025"]
[Site "Verden"]
[Date "2025.01.05"]
[Round "7.6"]
[White "Hengst, Ruediger"]
[Black "Nolte, Alexander Nicolai"]
[Result "0-1"]
[ECO "C02"]
[WhiteElo "1787"]
[BlackElo "1899"]
[Annotator "NA RC"]
[PlyCount "62"]
[EventDate "2024.12.27"]
[EventType "swiss"]
[EventCountry "GER"]
[SourceTitle "playchess.com"]
[Source "ChessBase"]
[SourceQuality "1"]
[TimeControl "40/5400+30:1800+30"]

1. e4 {[%emt 0:00:09]} c5 {[%emt 0:00:11]} 2. c3 {[%emt 0:00:29]} e6 {[%emt 0:00:29]} 3. d4 {[%emt 0:01:38]} d5 {[%emt 0:00:07]} 4. e5 {[%emt 0:01:37]} Bd7 {[%emt 0:05:28]} 5. Bd3 {[%emt 0:02:11]} Qb6 {[%emt 0:05:15]} 6. Ne2 {[%emt 0:01:56] C02: French: Advance Variation.} Bb5 {[%emt 0:04:37]} 7. Bxb5+ {[%emt 0:04:35]} Qxb5 {[%emt 0:00:03]} 8. O-O {[%emt 0:00:28]} Nc6 {[%emt 0:06:54]} 9. a4 {[%emt 0:08:09]} Qb6 {[%emt 0:00:13]} 10. Na3 {[%emt 0:03:02]} cxd4 {[%emt 0:06:36]} 11. cxd4 {[%emt 0:00:36]} Nge7 {[%emt 0:07:37]} 12. Nb5 {[%emt 0:19:22]} ({Better is} 12. Bd2 $11) 12... Nf5 {[%emt 0:08:15]} 13. g4 {[%emt 0:03:41]} a6 {[%emt 0:00:31]} 14. gxf5 {[%emt 0:13:30]} axb5 {[%emt 0:00:12]} 15. fxe6 {[%emt 0:00:15]} fxe6 {[%emt 0:00:21]} 16. Be3 {[%emt 0:01:16]} bxa4 {[%emt 0:15:45]} 17. Rxa4 {[%emt 0:00:50]} Rxa4 {[%emt 0:00:02]} 18. Qxa4 {[%emt 0:00:13]} Qxb2 {[%emt 0:00:13]} 19. Nf4 $16 {[%emt 0:00:39]} Kf7 {[%emt 0:08:18]} 20. Qa8 {[%emt 0:01:38]} Nxd4 {[%emt 0:10:47]} 21. Rc1 {[%emt 0:18:34]} Nc6 {[%emt 0:07:52]} 22. Qc8 {[%emt 0:07:01]} Qxe5 {[%emt 0:01:19]} 23. Qxb7+ {[%emt 0:00:15]} Ne7 {[%emt 0:00:02]} 24. Rc7 {[%emt 0:01:23]} h5 {[%emt 0:04:46]} 25. Qa7 {[%emt 0:00:26]} h4 {[%emt 0:02:53]} 26. h3 {[%emt 0:09:37]} Rh6 {[%emt 0:01:14]} 27. Qb8 {[%emt 0:00:00]} Qf5 {[%emt 0:01:57]} 28. Kh2 {[%emt 0:00:00]} Qe4 {[%emt 0:00:56]} 29. Nxd5 {[%emt 0:00:00]} Qxd5 {[%emt 0:00:24]} 30. Bxh6 {[%emt 0:00:00]} gxh6 {[%emt 0:00:01]} 31. Qb1 {[%emt 0:00:36]} Qe5+ {[%emt 0:00:20]} 0-1

[Event "LEM Niedersachsen-B-Open 2025"]
[Site "Verden"]
[Date "2025.01.05"]
[Round "7.7"]
[White "Amrhein, Dennis"]
[Black "Baum, Luis"]
[Result "1/2-1/2"]
[ECO "D10"]
[WhiteElo "1753"]
[BlackElo "1789"]
[Annotator "NA RC"]
[PlyCount "99"]
[EventDate "2024.12.27"]
[EventType "swiss"]
[EventCountry "GER"]
[SourceTitle "playchess.com"]
[Source "ChessBase"]
[SourceQuality "1"]
[TimeControl "40/5400+30:1800+30"]

1. d4 {[%emt 0:00:03]} Nf6 {[%emt 0:00:28]} 2. Bf4 {[%emt 0:00:11]} d5 {[%emt 0:00:35]} 3. e3 {[%emt 0:00:15]} Bf5 {[%emt 0:01:24]} 4. c4 {[%emt 0:00:52]} c6 {[%emt 0:12:20]} 5. Qb3 {[%emt 0:00:38]} Qb6 {[%emt 0:16:11]} 6. c5 {[%emt 0:00:08]} Qxb3 {[%emt 0:01:21]} 7. axb3 {[%emt 0:00:06]} Nbd7 {[%emt 0:17:07]} 8. h3 {[%emt 0:00:27]} Ne4 {[%emt 0:03:47]} 9. f3 {[%emt 0:02:18]} Nexc5 {[%emt 0:01:24]} 10. dxc5 {[%emt 0:00:41]} e5 {[%emt 0:00:15]} 11. Bg3 {[%emt 0:01:16]} Bxc5 {[%emt 0:01:21]} 12. Bf2 {[%emt 0:06:12]} Bb4+ {[%emt 0:00:58]} 13. Nc3 {[%emt 0:00:06]} O-O {[%emt 0:02:14]} 14. O-O-O {[%emt 0:03:43]} Rac8 {[%emt 0:08:53]} 15. e4 {[%emt 0:04:58]} Be6 {[%emt 0:00:15]} 16. Na2 {[%emt 0:02:29]} Be7 {[%emt 0:00:53]} 17. Bd3 {[%emt 0:01:09]} d4 {[%emt 0:01:49]} 18. Bc4 {[%emt 0:02:18]} Nc5 {[%emt 0:03:06]} 19. Bxe6 {[%emt 0:03:11]} Nxe6 {[%emt 0:00:27]} 20. Kc2 {[%emt 0:01:01]} c5 {[%emt 0:00:26]} 21. Ne2 {[%emt 0:01:03]} c4 {[%emt 0:00:54]} 22. bxc4 {[%emt 0:00:28]} Rxc4+ {[%emt 0:00:36]} 23. Kb1 {[%emt 0:02:49]} Rfc8 {[%emt 0:08:10]} 24. Rc1 {[%emt 0:01:02]} Bg5 {[%emt 0:00:47]} 25. Rxc4 {[%emt 0:00:48]} Rxc4 {[%emt 0:00:08]} 26. Nac1 {[%emt 0:01:07]} Nc5 {[%emt 0:05:27]} 27. Rd1 {[%emt 0:00:45]} Be7 {[%emt 0:04:51]} 28. Be1 {[%emt 0:02:28]} Ne6 {[%emt 0:02:47]} 29. Nd3 {[%emt 0:03:19]} f6 {[%emt 0:00:57]} 30. Rc1 {[%emt 0:01:07]} b5 {[%emt 0:01:12]} 31. b3 {[%emt 0:00:30]} Rxc1+ {[%emt 0:02:39]} 32. Kxc1 {[%emt 0:00:41]} Nd8 {[%emt 0:00:39]} 33. Bb4 {[%emt 0:00:32]} Bxb4 {[%emt 0:00:25]} 34. Nxb4 {[%emt 0:00:05]} a5 {[%emt 0:00:09]} 35. Nd3 {[%emt 0:04:39]} Nc6 {[%emt 0:00:20]} 36. f4 {[%emt 0:08:27]} Kf7 {[%emt 0:00:43]} 37. f5 {[%emt 0:01:43]} g6 {[%emt 0:01:37]} 38. g4 {[%emt 0:02:46]} Kg7 {[%emt 0:01:10]} 39. h4 {[%emt 0:01:20]} Kf7 {[%emt 0:00:24]} 40. Ng3 {[%emt 0:01:03]} h6 {[%emt 0:00:48]} 41. h5 {[%emt 0:33:21]} g5 {[%emt 0:01:07]} 42. Kb2 {[%emt 0:00:00]} Ke7 {[%emt 0:00:19]} 43. Nf1 {[%emt 0:00:00]} Kd6 {[%emt 0:04:30]} 44. Ka3 {[%emt 0:00:00]} Kc7 {[%emt 0:00:27]} 45. Nd2 {[%emt 0:00:00]} Kb6 {[%emt 0:02:35]} 46. b4 {[%emt 0:00:00]} Kc7 {[%emt 0:00:33]} 47. bxa5 {[%emt 0:00:00]} Nxa5 {[%emt 0:00:48]} 48. Kb4 {[%emt 0:00:00]} Kb6 {[%emt 0:00:13]} 49. Nb3 {[%emt 0:07:57]} Nc4 {[%emt 0:00:59]} 50. Nf2 {[%emt 0:07:09]} 1/2-1/2

[Event "LEM Niedersachsen-B-Open 2025"]
[Site "Verden"]
[Date "2025.01.05"]
[Round "7.8"]
[White "Tanukusuma, Kyllian Gotthold"]
[Black "Balazs, Kata"]
[Result "1/2-1/2"]
[ECO "B01"]
[WhiteElo "1639"]
[BlackElo "1824"]
[Annotator "NA RC"]
[PlyCount "81"]
[EventDate "2024.12.27"]
[EventType "swiss"]
[EventCountry "GER"]
[SourceTitle "playchess.com"]
[Source "ChessBase"]
[SourceQuality "1"]
[TimeControl "40/5400+30:1800+30"]

1. e4 {[%emt 0:00:03]} d5 {[%emt 0:00:03]} 2. exd5 {[%emt 0:00:04]} Qxd5 {[%emt 0:00:03]} 3. Nc3 {[%emt 0:00:06]} Qa5 {[%emt 0:00:05]} 4. d4 {[%emt 0:00:05]} Nf6 {[%emt 0:00:04]} 5. Nf3 {[%emt 0:00:07]} Bg4 {[%emt 0:00:08]} 6. Bc4 {[%emt 0:00:15]} Nc6 {[%emt 0:01:27] 6...Nc6 is better than 6...e6.} 7. h3 {[%emt 0:00:29]} Bh5 {[%emt 0:01:40] B01: Scandinavian Defence.} 8. Bd2 {[%emt 0:03:22]} Nxd4 {[%emt 0:08:23]} 9. Nb5 $146 {[%emt 0:13:46]} ({Predecessor:} 9. g4 Nxf3+ 10. Qxf3 Qb4 11. Bb3 Bg6 12. a3 Be4 13. Qxe4 Qxe4+ 14. Nxe4 Nxe4 15. Bd5 Nxd2 16. Bxb7 {0-1 Alberts,B-Hornstein,L (1323) Verden op-B 2023 (6)}) 9... Nxf3+ {[%emt 0:02:43]} 10. gxf3 {[%emt 0:01:02]} Qb6 {[%emt 0:02:19]} 11. Bf4 {[%emt 0:03:24]} Rc8 {[%emt 0:06:59] [#]} 12. Nxc7+ $16 {[%emt 0:05:47]} Rxc7 {[%emt 0:00:17]} 13. Bxc7 {[%emt 0:00:02]} Qxc7 {[%emt 0:00:06]} 14. Bb5+ {[%emt 0:00:07]} Nd7 {[%emt 0:00:12]} 15. Qd5 {[%emt 0:01:24]} Bxf3 {[%emt 0:22:47]} 16. Bxd7+ {[%emt 0:01:02]} Qxd7 {[%emt 0:00:04]} 17. Qxf3 {[%emt 0:00:07]} Qe6+ {[%emt 0:01:54]} 18. Qe2 {[%emt 0:03:39]} Qxe2+ {[%emt 0:00:53]} 19. Kxe2 {[%emt 0:00:05]} g6 {[%emt 0:01:16]} 20. Rad1 {[%emt 0:00:36]} Bg7 {[%emt 0:00:28]} 21. Rd3 {[%emt 0:00:12]} Be5 {[%emt 0:02:24]} 22. Rhd1 {[%emt 0:00:23]} Bd6 {[%emt 0:00:29]} 23. c4 {[%emt 0:00:05]} O-O {[%emt 0:00:31]} 24. a3 {[%emt 0:00:13]} Rc8 {[%emt 0:00:50]} 25. Rd4 {[%emt 0:00:51]} a5 {[%emt 0:02:36]} 26. b4 {[%emt 0:04:47]} axb4 {[%emt 0:03:40]} 27. axb4 {[%emt 0:00:08]} b6 {[%emt 0:00:11]} 28. b5 {[%emt 0:03:08]} Kg7 {[%emt 0:03:54]} 29. f4 {[%emt 0:01:58]} Bc5 {[%emt 0:11:42]} 30. Rd8 {[%emt 0:01:10]} Rxd8 {[%emt 0:00:11]} 31. Rxd8 {[%emt 0:00:05]} Kf6 {[%emt 0:03:02]} 32. Kf3 {[%emt 0:00:41]} Ke6 {[%emt 0:25:09]} 33. Ke4 {[%emt 0:03:39]} h5 {[%emt 0:00:00]} 34. Rd5 {[%emt 0:01:49]} Bd6 {[%emt 0:00:00]} 35. h4 {[%emt 0:01:44]} f5+ {[%emt 0:00:00]} 36. Kf3 {[%emt 0:00:28]} Bb4 {[%emt 0:00:24]} 37. Rd8 {[%emt 0:01:03]} Bd6 {[%emt 0:00:43]} 38. Kg3 {[%emt 0:02:15]} Bb4 {[%emt 0:00:17]} 39. Rb8 {[%emt 0:00:12]} Bc5 {[%emt 0:00:15]} 40. Kf3 {[%emt 0:00:05]} Bd4 {[%emt 0:01:44]} 41. Ke2 {[%emt 1:20:32]} 1/2-1/2

[Event "LEM Niedersachsen-B-Open 2025"]
[Site "Verden"]
[Date "2025.01.05"]
[Round "7.10"]
[White "Sturm, Tobias"]
[Black "Nordhorn, Horst"]
[Result "1-0"]
[ECO "B12"]
[WhiteElo "1929"]
[BlackElo "1791"]
[Annotator "RC"]
[PlyCount "51"]
[EventDate "2024.12.27"]
[EventType "swiss"]
[EventCountry "GER"]
[SourceTitle "playchess.com"]
[Source "ChessBase"]
[SourceQuality "1"]
[TimeControl "40/5400+30:1800+30"]

1. e4 {[%emt 1:31:00]} c6 {[%emt 0:02:01]} 2. d4 {[%emt 0:00:00]} d5 {[%emt 0:00:08]} 3. e5 {[%emt 0:00:00]} Bf5 {[%emt 0:00:08]} 4. Ne2 {[%emt 0:00:00]} e6 {[%emt 0:00:08]} 5. Ng3 {[%emt 0:00:00]} Bg6 {[%emt 0:00:07]} 6. h4 {[%emt 0:00:00]} f6 {[%emt 0:00:12]} 7. exf6 {[%emt 0:00:00]} Nxf6 {[%emt 0:05:59]} 8. h5 {[%emt 0:00:00]} Bf7 {[%emt 0:00:19]} 9. Bd3 {[%emt 0:00:00]} Bd6 {[%emt 0:00:44]} 10. f4 {[%emt 0:00:00]} Qc7 {[%emt 0:00:37]} 11. O-O {[%emt 0:00:00]} Nbd7 {[%emt 0:00:23]} 12. Qf3 {[%emt 0:00:00]} O-O-O {[%emt 0:01:39]} 13. c4 {[%emt 0:00:00]} Qb8 {[%emt 0:00:34]} 14. Bd2 {[%emt 0:00:00]} Rhf8 {[%emt 0:00:39]} 15. Ba5 {[%emt 0:00:00]} Rde8 {[%emt 0:01:41]} 16. Nc3 {[%emt 0:00:00]} Bxf4 {[%emt 0:00:28]} 17. Qxf4 {[%emt 0:00:00]} Qxf4 {[%emt 0:00:15]} 18. Rxf4 {[%emt 0:00:00]} Nxh5 {[%emt 0:00:43]} 19. Nxh5 {[%emt 0:00:00]} Bxh5 {[%emt 0:00:06]} 20. Raf1 {[%emt 0:00:00]} Rxf4 {[%emt 0:00:35]} 21. Rxf4 {[%emt 0:00:00]} dxc4 {[%emt 0:01:07]} 22. Bxc4 {[%emt 0:00:00]} e5 {[%emt 0:00:05]} 23. Rh4 {[%emt 0:00:00]} Bg6 {[%emt 0:00:15]} 24. Ne4 {[%emt 0:00:00]} Kb8 {[%emt 0:01:26]} 25. Nd6 {[%emt 0:00:00]} Rf8 {[%emt 0:02:47]} 26. Bc3 {[%emt 0:00:00]} 1-0